[Event "Late-Titled-Tuesday-Blitz-February-20-2024"]
[Site "Chess.com"]
[Date "2024.02.20"]
[Round "2"]
[White "DeArron_Fox"]
[Black "Mr_Heisenberg13"]
[Result "0-1"]
[WhiteElo "2525"]
[BlackElo "2845"]
[TimeControl "180+1"]
[EndTime "14:15:34 PST"]
[Termination "Mr_Heisenberg13 won by resignation"]

1. d4 {[%clk 0:03:00.9]} 1... Nf6 {[%clk 0:02:58.9]} 2. c4 {[%clk 0:03:00]} 2...
e6 {[%clk 0:02:58.7]} 3. Nf3 {[%clk 0:03:00.2]} 3... a6 {[%clk 0:02:55.4]} 4.
Nc3 {[%clk 0:02:58.9]} 4... d5 {[%clk 0:02:55.6]} 5. cxd5 {[%clk 0:02:44.8]}
5... exd5 {[%clk 0:02:56.5]} 6. Bg5 {[%clk 0:02:45.1]} 6... Be6 {[%clk
0:02:56.1]} 7. Bxf6 {[%clk 0:02:37.9]} 7... Qxf6 {[%clk 0:02:57]} 8. Qb3 {[%clk
0:02:37.9]} 8... Ra7 {[%clk 0:02:56]} 9. g3 {[%clk 0:02:02.7]} 9... Qd8 {[%clk
0:02:45.1]} 10. h4 {[%clk 0:01:59.1]} 10... h6 {[%clk 0:02:44.1]} 11. Bh3 {[%clk
0:01:54.4]} 11... Bxh3 {[%clk 0:02:40.4]} 12. Rxh3 {[%clk 0:01:55.3]} 12... c6
{[%clk 0:02:40.5]} 13. Kf1 {[%clk 0:01:53.1]} 13... Be7 {[%clk 0:02:40.2]} 14.
e4 {[%clk 0:01:30.4]} 14... dxe4 {[%clk 0:02:41.1]} 15. Nxe4 {[%clk 0:01:29.3]}
15... O-O {[%clk 0:02:41.4]} 16. Kg2 {[%clk 0:01:27]} 16... Nd7 {[%clk
0:02:41.2]} 17. Qc2 {[%clk 0:00:49.9]} 17... Nf6 {[%clk 0:02:38.8]} 18. Neg5
{[%clk 0:00:44.9]} 18... Qd5 {[%clk 0:02:37.1]} 19. Re1 {[%clk 0:00:38.5]} 19...
Bd6 {[%clk 0:02:36.6]} 20. Ne4 {[%clk 0:00:30.1]} 20... Nxe4 {[%clk 0:02:35.3]}
21. Qxe4 {[%clk 0:00:30.4]} 21... Qxe4 {[%clk 0:02:33.9]} 22. Rxe4 {[%clk
0:00:29.5]} 22... Raa8 {[%clk 0:02:34.8]} 23. Rh1 {[%clk 0:00:27.2]} 23... Rfe8
{[%clk 0:02:35.3]} 24. Rhe1 {[%clk 0:00:25.8]} 24... Rxe4 {[%clk 0:02:35.8]} 25.
Rxe4 {[%clk 0:00:26.7]} 25... Kf8 {[%clk 0:02:35.9]} 26. Kf1 {[%clk 0:00:23.5]}
26... Rd8 {[%clk 0:02:36.2]} 27. Ke2 {[%clk 0:00:23.5]} 27... Be7 {[%clk
0:02:35.9]} 28. Kd3 {[%clk 0:00:19.5]} 28... Bf6 {[%clk 0:02:36.1]} 29. b3
{[%clk 0:00:17.5]} 29... c5 {[%clk 0:02:31.6]} 30. Kc4 {[%clk 0:00:10.4]} 30...
cxd4 {[%clk 0:02:31.2]} 31. Nxd4 {[%clk 0:00:11.3]} 31... h5 {[%clk 0:02:31]}
32. f3 {[%clk 0:00:02.8]} 32... g6 {[%clk 0:02:30.6]} 33. g4 {[%clk 0:00:03]}
33... hxg4 {[%clk 0:02:30.3]} 34. Rxg4 {[%clk 0:00:03.9]} 34... Rc8+ {[%clk
0:02:27.9]} 35. Kd3 {[%clk 0:00:04]} 35... Rc1 {[%clk 0:02:25.9]} 36. Nc2 {[%clk
0:00:03.8]} 36... Rh1 {[%clk 0:02:25.4]} 37. Rb4 {[%clk 0:00:02.7]} 37... b5
{[%clk 0:02:24.2]} 38. a4 {[%clk 0:00:02.6]} 38... Be7 {[%clk 0:02:24.6]} 39.
Re4 {[%clk 0:00:01.8]} 39... Bxh4 {[%clk 0:02:20.3]} 40. axb5 {[%clk 0:00:02.7]}
40... axb5 {[%clk 0:02:21.2]} 41. Rb4 {[%clk 0:00:02.6]} 41... Rd1+ {[%clk
0:02:18.3]} 42. Ke2 {[%clk 0:00:02.3]} 42... Rd5 {[%clk 0:02:18.1]} 43. Nd4
{[%clk 0:00:01.8]} 43... Be7 {[%clk 0:02:18.4]} 44. Rxb5 {[%clk 0:00:01.4]}
44... Rxd4 {[%clk 0:02:18.3]} 45. Rb8+ {[%clk 0:00:02.3]} 45... Kg7 {[%clk
0:02:18.1]} 46. Rb7 {[%clk 0:00:03.2]} 46... Kf6 {[%clk 0:02:17.9]} 47. Ke3
{[%clk 0:00:04.1]} 47... Rb4 {[%clk 0:02:18.1]} 0-1

[Event "Late-Titled-Tuesday-Blitz-February-20-2024"]
[Site "Chess.com"]
[Date "2024.02.20"]
[Round "2"]
[White "sakkikuska"]
[Black "glebus008"]
[Result "1-0"]
[WhiteElo "2517"]
[BlackElo "2316"]
[TimeControl "180+1"]
[EndTime "14:15:35 PST"]
[Termination "sakkikuska won by resignation"]

1. e4 {[%clk 0:03:00.9]} 1... Nc6 {[%clk 0:02:58.5]} 2. Nf3 {[%clk 0:03:00.9]}
2... d5 {[%clk 0:02:58]} 3. exd5 {[%clk 0:03:00.9]} 3... Qxd5 {[%clk 0:02:58.9]}
4. Nc3 {[%clk 0:03:01.1]} 4... Qh5 {[%clk 0:02:58]} 5. Be2 {[%clk 0:02:57.1]}
5... Bg4 {[%clk 0:02:54.1]} 6. O-O {[%clk 0:02:50.2]} 6... O-O-O {[%clk
0:02:52.8]} 7. h3 {[%clk 0:02:48.8]} 7... Nf6 {[%clk 0:02:41.6]} 8. d3 {[%clk
0:02:31.9]} 8... e5 {[%clk 0:02:26.2]} 9. Ng5 {[%clk 0:01:55.2]} 9... Bxe2
{[%clk 0:02:17.9]} 10. Qxe2 {[%clk 0:01:56.1]} 10... Nd4 {[%clk 0:02:12.3]} 11.
Qxh5 {[%clk 0:01:52.8]} 11... Nxh5 {[%clk 0:02:11.9]} 12. Nxf7 {[%clk
0:01:51.1]} 12... Nxc2 {[%clk 0:02:10.4]} 13. Rb1 {[%clk 0:01:46.2]} 13... Bc5
{[%clk 0:01:58.5]} 14. Bg5 {[%clk 0:01:29.5]} 14... Rdf8 {[%clk 0:01:32.7]} 15.
Nxh8 {[%clk 0:01:28.9]} 15... Rxh8 {[%clk 0:01:33.6]} 16. Rbc1 {[%clk
0:01:23.2]} 16... Nd4 {[%clk 0:01:30.1]} 17. Be3 {[%clk 0:01:17.7]} 17... Rf8
{[%clk 0:01:20.9]} 18. Bxd4 {[%clk 0:01:07.4]} 18... Bxd4 {[%clk 0:01:17.5]} 19.
Nb5 {[%clk 0:01:05.1]} 19... Nf4 {[%clk 0:01:04.8]} 20. Nxd4 {[%clk 0:00:51]}
20... exd4 {[%clk 0:01:04.1]} 21. Rcd1 {[%clk 0:00:50.8]} 21... c5 {[%clk
0:00:51.6]} 22. Rfe1 {[%clk 0:00:47.4]} 22... b6 {[%clk 0:00:47.5]} 23. Re7
{[%clk 0:00:45]} 1-0

[Event "Late-Titled-Tuesday-Blitz-February-20-2024"]
[Site "Chess.com"]
[Date "2024.02.20"]
[Round "2"]
[White "KorolDimitriy75"]
[Black "chessydotcom"]
[Result "0-1"]
[WhiteElo "2414"]
[BlackElo "2190"]
[TimeControl "180+1"]
[EndTime "14:15:39 PST"]
[Termination "chessydotcom won on time"]

1. d4 {[%clk 0:03:00.9]} 1... d5 {[%clk 0:02:59.7]} 2. c4 {[%clk 0:03:00.6]}
2... e6 {[%clk 0:02:58.5]} 3. Nc3 {[%clk 0:03:00.9]} 3... c5 {[%clk 0:02:58.1]}
4. cxd5 {[%clk 0:03:00.5]} 4... exd5 {[%clk 0:02:58.8]} 5. Nf3 {[%clk
0:03:00.3]} 5... Nc6 {[%clk 0:02:57.6]} 6. g3 {[%clk 0:03:00.6]} 6... Nf6 {[%clk
0:02:57.3]} 7. Bg2 {[%clk 0:03:00.9]} 7... cxd4 {[%clk 0:02:55.5]} 8. Nxd4
{[%clk 0:03:00.6]} 8... Bc5 {[%clk 0:02:55.2]} 9. Nxc6 {[%clk 0:03:00]} 9...
bxc6 {[%clk 0:02:54.6]} 10. O-O {[%clk 0:03:00.2]} 10... O-O {[%clk 0:02:44.4]}
11. b3 {[%clk 0:02:59.8]} 11... Ba6 {[%clk 0:02:39]} 12. Na4 {[%clk 0:02:50.9]}
12... Bb6 {[%clk 0:02:34.8]} 13. Nxb6 {[%clk 0:02:34.1]} 13... axb6 {[%clk
0:02:34.1]} 14. Bb2 {[%clk 0:02:33.2]} 14... Re8 {[%clk 0:02:30.6]} 15. Bf3
{[%clk 0:02:24.4]} 15... Ne4 {[%clk 0:02:12.5]} 16. Qd4 {[%clk 0:02:17]} 16...
f6 {[%clk 0:02:10.6]} 17. Rfd1 {[%clk 0:02:11.9]} 17... Ng5 {[%clk 0:02:07.5]}
18. Rd2 {[%clk 0:01:42.7]} 18... Bxe2 {[%clk 0:01:56.4]} 19. Bxe2 {[%clk
0:01:25.1]} 19... Rxe2 {[%clk 0:01:55]} 20. Kg2 {[%clk 0:01:22.3]} 20... Rxd2
{[%clk 0:01:52.6]} 21. Qxd2 {[%clk 0:01:23.2]} 21... Qd7 {[%clk 0:01:45.9]} 22.
Qd3 {[%clk 0:01:08.3]} 22... Qh3+ {[%clk 0:01:40]} 23. Kg1 {[%clk 0:01:08.6]}
23... Re8 {[%clk 0:01:36.8]} 24. Rd1 {[%clk 0:01:03.6]} 24... Qg4 {[%clk
0:01:31.6]} 25. h4 {[%clk 0:00:59.8]} 25... Nh3+ {[%clk 0:01:29.9]} 26. Kg2
{[%clk 0:00:59.8]} 26... Nf4+ {[%clk 0:01:30]} 0-1

[Event "Late-Titled-Tuesday-Blitz-February-20-2024"]
[Site "Chess.com"]
[Date "2024.02.20"]
[Round "2"]
[White "PacingRope"]
[Black "MaestroCheck"]
[Result "1-0"]
[WhiteElo "2904"]
[BlackElo "2549"]
[TimeControl "180+1"]
[EndTime "14:15:44 PST"]
[Termination "PacingRope won by checkmate"]

1. e4 {[%clk 0:03:00.9]} 1... c5 {[%clk 0:02:59.8]} 2. Nf3 {[%clk 0:02:59.4]}
2... e6 {[%clk 0:03:00.4]} 3. d4 {[%clk 0:02:59.9]} 3... cxd4 {[%clk 0:03:01.3]}
4. Nxd4 {[%clk 0:03:00.3]} 4... Nf6 {[%clk 0:03:01.9]} 5. Nc3 {[%clk 0:02:57.1]}
5... Nc6 {[%clk 0:03:02.2]} 6. g4 {[%clk 0:02:57.2]} 6... Bb4 {[%clk 0:03:00.6]}
7. Bg2 {[%clk 0:02:56]} 7... d5 {[%clk 0:02:58.5]} 8. Nxc6 {[%clk 0:02:50]} 8...
bxc6 {[%clk 0:02:56.9]} 9. g5 {[%clk 0:02:43]} 9... Nxe4 {[%clk 0:02:54.6]} 10.
Bxe4 {[%clk 0:02:41.8]} 10... dxe4 {[%clk 0:02:55.5]} 11. Qxd8+ {[%clk
0:02:38.6]} 11... Kxd8 {[%clk 0:02:56.4]} 12. Bd2 {[%clk 0:02:39]} 12... Bb7
{[%clk 0:02:32.2]} 13. O-O-O {[%clk 0:02:35.6]} 13... Ke7 {[%clk 0:02:31]} 14.
Nxe4 {[%clk 0:02:27.7]} 14... Bxd2+ {[%clk 0:02:30.6]} 15. Rxd2 {[%clk
0:02:18.8]} 15... c5 {[%clk 0:02:29.2]} 16. Re1 {[%clk 0:02:18.9]} 16... Bxe4
{[%clk 0:02:26.2]} 17. Rxe4 {[%clk 0:02:17.9]} 17... Rhd8 {[%clk 0:02:22.4]} 18.
Rc4 {[%clk 0:02:17.2]} 18... Rxd2 {[%clk 0:02:20.6]} 19. Kxd2 {[%clk 0:02:17.8]}
19... Kd6 {[%clk 0:02:21.1]} 20. Rh4 {[%clk 0:02:14.5]} 20... Rh8 {[%clk
0:02:21.1]} 21. Ra4 {[%clk 0:02:11.4]} 21... Ra8 {[%clk 0:02:20.1]} 22. Rh4
{[%clk 0:02:11.5]} 22... Rh8 {[%clk 0:02:19.4]} 23. Rf4 {[%clk 0:02:03.8]} 23...
Rf8 {[%clk 0:02:17.5]} 24. h4 {[%clk 0:02:03.2]} 24... f5 {[%clk 0:02:12.3]} 25.
Ra4 {[%clk 0:01:58.9]} 25... Rf7 {[%clk 0:02:09.8]} 26. f4 {[%clk 0:01:59.8]}
26... e5 {[%clk 0:02:07.9]} 27. Ke3 {[%clk 0:01:56.6]} 27... Rb7 {[%clk
0:02:04.5]} 28. b3 {[%clk 0:01:53.7]} 28... e4 {[%clk 0:01:55.3]} 29. Ra6+
{[%clk 0:01:52.5]} 29... Ke7 {[%clk 0:01:54.1]} 30. Rc6 {[%clk 0:01:48.4]} 30...
g6 {[%clk 0:01:45.7]} 31. Rxc5 {[%clk 0:01:47.8]} 31... Rd7 {[%clk 0:01:46]} 32.
Ra5 {[%clk 0:01:36.7]} 32... Rd1 {[%clk 0:01:43.4]} 33. Rxa7+ {[%clk 0:01:34.4]}
33... Kd6 {[%clk 0:01:43.7]} 34. Rxh7 {[%clk 0:01:31.2]} 34... Re1+ {[%clk
0:01:43]} 35. Kd2 {[%clk 0:01:25.7]} 35... Rf1 {[%clk 0:01:43]} 36. h5 {[%clk
0:01:21.9]} 36... gxh5 {[%clk 0:01:40.8]} 37. Rxh5 {[%clk 0:01:18.6]} 37... Rxf4
{[%clk 0:01:41.2]} 38. g6 {[%clk 0:01:17.7]} 38... Ke5 {[%clk 0:01:41.1]} 39.
Rg5 {[%clk 0:01:16.1]} 39... Rf2+ {[%clk 0:01:32]} 40. Ke1 {[%clk 0:01:14.1]}
40... Rxc2 {[%clk 0:01:23.4]} 41. g7 {[%clk 0:01:14.2]} 41... Kd4 {[%clk
0:01:20]} 42. g8=Q {[%clk 0:01:10]} 42... f4 {[%clk 0:01:20.1]} 43. Rd5+ {[%clk
0:01:01.2]} 43... Ke3 {[%clk 0:01:16.6]} 44. Qg1+ {[%clk 0:01:00]} 44... Kf3
{[%clk 0:01:16.6]} 45. Rd2 {[%clk 0:00:54.2]} 45... Rc1+ {[%clk 0:01:16.3]} 46.
Rd1 {[%clk 0:00:54]} 46... Rc2 {[%clk 0:01:16.9]} 47. Qh1+ {[%clk 0:00:51.8]}
47... Ke3 {[%clk 0:01:16.3]} 48. Qh3+ {[%clk 0:00:50.4]} 48... f3 {[%clk
0:01:14.4]} 49. Qh6# {[%clk 0:00:51]} 1-0

[Event "Late-Titled-Tuesday-Blitz-February-20-2024"]
[Site "Chess.com"]
[Date "2024.02.20"]
[Round "2"]
[White "Rashad_Zeynalli"]
[Black "s-dshubin"]
[Result "1-0"]
[WhiteElo "2639"]
[BlackElo "2359"]
[TimeControl "180+1"]
[EndTime "14:15:45 PST"]
[Termination "Rashad_Zeynalli won by checkmate"]

1. e4 {[%clk 0:03:00.9]} 1... e6 {[%clk 0:03:00.2]} 2. d4 {[%clk 0:02:54.6]}
2... d5 {[%clk 0:03:01.1]} 3. Nc3 {[%clk 0:02:54.2]} 3... Nf6 {[%clk 0:02:58.3]}
4. e5 {[%clk 0:02:54.7]} 4... Ne4 {[%clk 0:02:58.9]} 5. Nxe4 {[%clk 0:02:52.7]}
5... dxe4 {[%clk 0:02:59.8]} 6. c3 {[%clk 0:02:50.2]} 6... c5 {[%clk 0:02:53.6]}
7. Ne2 {[%clk 0:02:45]} 7... b6 {[%clk 0:02:51.6]} 8. Ng3 {[%clk 0:02:39]} 8...
Bb7 {[%clk 0:02:51.4]} 9. Bb5+ {[%clk 0:02:22.5]} 9... Nd7 {[%clk 0:02:50.2]}
10. Be3 {[%clk 0:02:20]} 10... a6 {[%clk 0:02:46.2]} 11. Bxd7+ {[%clk
0:02:17.2]} 11... Qxd7 {[%clk 0:02:46.3]} 12. dxc5 {[%clk 0:02:17.4]} 12...
Qxd1+ {[%clk 0:02:45.9]} 13. Rxd1 {[%clk 0:02:16.5]} 13... Bxc5 {[%clk
0:02:46.8]} 14. Bxc5 {[%clk 0:02:16.1]} 14... bxc5 {[%clk 0:02:47.7]} 15. O-O
{[%clk 0:02:02.5]} 15... Ke7 {[%clk 0:02:43.8]} 16. Rfe1 {[%clk 0:01:53.3]}
16... Rhd8 {[%clk 0:02:40.3]} 17. Kf1 {[%clk 0:01:52.9]} 17... Rxd1 {[%clk
0:02:35.5]} 18. Rxd1 {[%clk 0:01:52.5]} 18... f5 {[%clk 0:02:36.1]} 19. Nh5
{[%clk 0:01:40.3]} 19... Bd5 {[%clk 0:02:18.1]} 20. b3 {[%clk 0:01:28.9]} 20...
c4 {[%clk 0:02:18.3]} 21. b4 {[%clk 0:01:13.5]} 21... a5 {[%clk 0:01:56]} 22. b5
{[%clk 0:01:11.8]} 22... g6 {[%clk 0:01:51.8]} 23. Nf6 {[%clk 0:00:58.3]} 23...
a4 {[%clk 0:01:38.2]} 24. Nxd5+ {[%clk 0:00:50.9]} 24... exd5 {[%clk 0:01:39.1]}
25. Rxd5 {[%clk 0:00:50.5]} 25... Ke6 {[%clk 0:01:38.7]} 26. Rc5 {[%clk
0:00:49.8]} 26... Rd8 {[%clk 0:01:34.2]} 27. Ke2 {[%clk 0:00:45.3]} 27... Rb8
{[%clk 0:01:16.7]} 28. Ke3 {[%clk 0:00:44.4]} 28... Rb7 {[%clk 0:01:14.4]} 29.
Kd4 {[%clk 0:00:43.9]} 29... Rd7+ {[%clk 0:01:14.2]} 30. Kxc4 {[%clk 0:00:43.7]}
30... Rd2 {[%clk 0:01:13.8]} 31. b6 {[%clk 0:00:42.2]} 31... Rxa2 {[%clk
0:01:13.6]} 32. b7 {[%clk 0:00:41.3]} 32... Rb2 {[%clk 0:01:07.8]} 33. Rb5
{[%clk 0:00:41.5]} 33... Rxf2 {[%clk 0:01:03.5]} 34. b8=Q {[%clk 0:00:37.4]}
34... Rxg2 {[%clk 0:01:03.9]} 35. Qd6+ {[%clk 0:00:37.2]} 35... Kf7 {[%clk
0:01:04.6]} 36. Rb7+ {[%clk 0:00:36.4]} 36... Kg8 {[%clk 0:01:05.4]} 37. Qb8#
{[%clk 0:00:36.4]} 1-0

[Event "Late-Titled-Tuesday-Blitz-February-20-2024"]
[Site "Chess.com"]
[Date "2024.02.20"]
[Round "2"]
[White "nindjaxx8"]
[Black "Firouzja2003"]
[Result "0-1"]
[WhiteElo "2639"]
[BlackElo "3113"]
[TimeControl "180+1"]
[EndTime "14:15:50 PST"]
[Termination "Firouzja2003 won by resignation"]

1. d4 {[%clk 0:03:00.9]} 1... d5 {[%clk 0:02:58]} 2. c4 {[%clk 0:03:01]} 2... e6
{[%clk 0:02:57.8]} 3. Nc3 {[%clk 0:03:00.7]} 3... Ne7 {[%clk 0:02:57.3]} 4. cxd5
{[%clk 0:02:58.3]} 4... exd5 {[%clk 0:02:57.3]} 5. Nf3 {[%clk 0:02:58.6]} 5...
Ng6 {[%clk 0:02:55.4]} 6. e3 {[%clk 0:02:43.3]} 6... c6 {[%clk 0:02:55.4]} 7.
Bd3 {[%clk 0:02:43.9]} 7... Bd6 {[%clk 0:02:55.3]} 8. Bd2 {[%clk 0:02:41.2]}
8... Nd7 {[%clk 0:02:53.5]} 9. Qc2 {[%clk 0:02:41]} 9... Nf6 {[%clk 0:02:53.3]}
10. h4 {[%clk 0:02:36.9]} 10... Bg4 {[%clk 0:02:52.7]} 11. O-O-O {[%clk
0:02:28.8]} 11... Qe7 {[%clk 0:02:52.6]} 12. Bf5 {[%clk 0:02:25.6]} 12... Bxf5
{[%clk 0:02:52]} 13. Qxf5 {[%clk 0:02:26.5]} 13... Qd7 {[%clk 0:02:48.5]} 14.
Qc2 {[%clk 0:01:51.2]} 14... Qg4 {[%clk 0:02:47.4]} 15. Rde1 {[%clk 0:01:43.6]}
15... Ne4 {[%clk 0:02:38.8]} 16. Nxe4 {[%clk 0:01:39.5]} 16... Qxe4 {[%clk
0:02:37.8]} 17. h5 {[%clk 0:01:31.8]} 17... Ne7 {[%clk 0:02:35.8]} 18. Ng5
{[%clk 0:01:14.4]} 18... Qxc2+ {[%clk 0:02:35.5]} 19. Kxc2 {[%clk 0:01:15.3]}
19... h6 {[%clk 0:02:36.1]} 20. Nf3 {[%clk 0:01:14.9]} 20... O-O-O {[%clk
0:02:34.9]} 21. e4 {[%clk 0:01:13.9]} 21... dxe4 {[%clk 0:02:35]} 22. Rxe4
{[%clk 0:01:14.8]} 22... Nd5 {[%clk 0:02:35.3]} 23. Rhe1 {[%clk 0:01:13.6]}
23... Nf6 {[%clk 0:02:34]} 24. Rh4 {[%clk 0:01:09.8]} 24... Rhe8 {[%clk
0:02:33.2]} 25. Ne5 {[%clk 0:01:08.4]} 25... Re7 {[%clk 0:02:32.1]} 26. f4
{[%clk 0:01:06.5]} 26... Nd5 {[%clk 0:02:31.1]} 27. g4 {[%clk 0:00:49.6]} 27...
f6 {[%clk 0:02:30.8]} 28. Nd3 {[%clk 0:00:48.5]} 28... Rxe1 {[%clk 0:02:31.2]}
29. Nxe1 {[%clk 0:00:44.4]} 29... Bxf4 {[%clk 0:02:30.5]} 30. Nf3 {[%clk
0:00:38.4]} 30... Bd6 {[%clk 0:02:30]} 31. Rh1 {[%clk 0:00:38]} 31... Re8 {[%clk
0:02:30.3]} 32. Nh4 {[%clk 0:00:38]} 32... Re4 {[%clk 0:02:30]} 33. Nf5 {[%clk
0:00:37.4]} 33... Bf8 {[%clk 0:02:29.7]} 34. Rg1 {[%clk 0:00:36.3]} 34... Kd7
{[%clk 0:02:29.1]} 35. Kd3 {[%clk 0:00:36.2]} 35... Re8 {[%clk 0:02:29.9]} 36.
a3 {[%clk 0:00:35.4]} 36... b5 {[%clk 0:02:29.2]} 37. a4 {[%clk 0:00:32.8]}
37... bxa4 {[%clk 0:02:28.8]} 38. Ra1 {[%clk 0:00:32.4]} 38... a3 {[%clk
0:02:28.6]} 39. bxa3 {[%clk 0:00:32.4]} 39... Rb8 {[%clk 0:02:29.3]} 40. a4
{[%clk 0:00:30.9]} 40... Rb3+ {[%clk 0:02:29.1]} 41. Kc2 {[%clk 0:00:30]} 41...
Rh3 {[%clk 0:02:27.2]} 42. Rb1 {[%clk 0:00:30]} 42... Kc7 {[%clk 0:02:27]} 43.
Ba5+ {[%clk 0:00:29.5]} 43... Kc8 {[%clk 0:02:26.7]} 44. Rc1 {[%clk 0:00:26.2]}
44... Ra3 {[%clk 0:02:23.8]} 45. Re1 {[%clk 0:00:22.8]} 45... Kd7 {[%clk
0:02:23.8]} 46. Rb1 {[%clk 0:00:17.5]} 46... Ra2+ {[%clk 0:02:23.4]} 47. Kd3
{[%clk 0:00:16.6]} 47... Rxa4 {[%clk 0:02:23.4]} 48. Rb7+ {[%clk 0:00:16.7]}
48... Ke6 {[%clk 0:02:21.3]} 49. Bd8 {[%clk 0:00:11.5]} 49... Ra3+ {[%clk
0:02:19.6]} 50. Kd2 {[%clk 0:00:11]} 50... Nf4 {[%clk 0:02:12.2]} 51. Rc7 {[%clk
0:00:07.3]} 51... Bb4+ {[%clk 0:02:11]} 52. Kc2 {[%clk 0:00:07.1]} 52... Rc3+
{[%clk 0:02:11.7]} 53. Kb2 {[%clk 0:00:07.3]} 53... Nd3+ {[%clk 0:02:12.1]} 54.
Kb1 {[%clk 0:00:07.3]} 54... Kd5 {[%clk 0:02:10.5]} 55. Nxg7 {[%clk 0:00:07.2]}
55... Kc4 {[%clk 0:02:10.4]} 56. Bxf6 {[%clk 0:00:06.9]} 56... Kb3 {[%clk
0:02:10.7]} 0-1

[Event "Late-Titled-Tuesday-Blitz-February-20-2024"]
[Site "Chess.com"]
[Date "2024.02.20"]
[Round "2"]
[White "giovannibrandao7"]
[Black "bocah_sakit"]
[Result "0-1"]
[WhiteElo "2237"]
[BlackElo "2485"]
[TimeControl "180+1"]
[EndTime "14:15:54 PST"]
[Termination "bocah_sakit won on time"]

1. e4 {[%clk 0:03:00.9]} 1... c5 {[%clk 0:02:58.6]} 2. Nf3 {[%clk 0:03:01.4]}
2... Nc6 {[%clk 0:02:58.7]} 3. Bb5 {[%clk 0:02:58.9]} 3... g6 {[%clk 0:02:57.3]}
4. O-O {[%clk 0:02:58]} 4... Bg7 {[%clk 0:02:56]} 5. Re1 {[%clk 0:02:58.7]} 5...
e5 {[%clk 0:02:54.4]} 6. c3 {[%clk 0:02:58.6]} 6... Nge7 {[%clk 0:02:53.4]} 7.
d4 {[%clk 0:02:57.9]} 7... cxd4 {[%clk 0:02:54.3]} 8. cxd4 {[%clk 0:02:58.3]}
8... exd4 {[%clk 0:02:53.4]} 9. Bf4 {[%clk 0:02:58.7]} 9... O-O {[%clk
0:02:53.3]} 10. Bd6 {[%clk 0:02:21.4]} 10... a6 {[%clk 0:02:51.6]} 11. Bxc6
{[%clk 0:02:04.9]} 11... dxc6 {[%clk 0:02:48.5]} 12. e5 {[%clk 0:02:05.2]} 12...
Re8 {[%clk 0:02:47.2]} 13. Nxd4 {[%clk 0:01:59.4]} 13... Nf5 {[%clk 0:02:37.1]}
14. Nxf5 {[%clk 0:01:57.6]} 14... Bxf5 {[%clk 0:02:38]} 15. Nc3 {[%clk
0:01:55.5]} 15... Qh4 {[%clk 0:02:24.9]} 16. g3 {[%clk 0:01:49.4]} 16... Qh3
{[%clk 0:02:19.5]} 17. Qd4 {[%clk 0:01:24.1]} 17... Rad8 {[%clk 0:02:15.5]} 18.
Ne4 {[%clk 0:00:50.1]} 18... Rxe5 {[%clk 0:01:37.3]} 19. Qxe5 {[%clk 0:00:10.2]}
19... Bxe5 {[%clk 0:01:35.7]} 20. Bxe5 {[%clk 0:00:11.1]} 20... Bxe4 {[%clk
0:01:35.5]} 21. Rxe4 {[%clk 0:00:12]} 21... Qf5 {[%clk 0:01:32.3]} 22. Rae1
{[%clk 0:00:09.2]} 22... Re8 {[%clk 0:01:31.8]} 23. R4e3 {[%clk 0:00:02.6]}
23... h5 {[%clk 0:01:31.4]} 24. Bc3 {[%clk 0:00:02.5]} 24... Rxe3 {[%clk
0:01:32]} 25. Rxe3 {[%clk 0:00:03.4]} 25... Kf8 {[%clk 0:01:27.8]} 26. Kg2
{[%clk 0:00:02.6]} 26... Qd5+ {[%clk 0:01:27.3]} 27. f3 {[%clk 0:00:03.1]} 27...
f5 {[%clk 0:01:21.8]} 28. b3 {[%clk 0:00:02.1]} 28... c5 {[%clk 0:01:20]} 29.
Bf6 {[%clk 0:00:01.3]} 29... Kf7 {[%clk 0:01:19.7]} 0-1